bitfinex-derivatives/quotes_BTCF0:USTF0_20250901
["timestamp","ask_amount","ask_price","bid_price","bid_amount"]
[1756757569452,0.07517466,109240.0,109230.0,1.47813975]
[1756757582963,0.07517466,109240.0,109230.0,1.41218132]
[1756757584068,0.95851972,109240.0,109230.0,0.85149911]
[1756757584364,0.95851972,109240.0,109230.0,1.15619477]
[1756757584665,1.48906406,109240.0,109230.0,1.15619477]
[1756757585254,1.79375972,109240.0,109230.0,0.85149911]
[1756757585658,1.79375972,109240.0,109230.0,1.15619477]
[1756757586364,1.48906406,109240.0,109230.0,1.15619477]
[1756757586566,1.48906406,109240.0,109230.0,0.85149911]
[1756757587569,1.48906406,109240.0,109230.0,1.15619477]
[1756757588167,1.1843684,109240.0,109230.0,1.15619477]
[1756757588367,1.48906406,109240.0,109230.0,1.15619477]
[1756757589262,1.79375972,109240.0,109230.0,0.04565]
[1756757589467,2.06375972,109240.0,109230.0,0.04565]
[1756757590072,0.001,109230.0,109220.0,0.49312911]
[1756757590264,0.4586494,109230.0,109220.0,0.44367]
[1756757591873,0.4586494,109230.0,109220.0,0.44467]
[1756757592471,0.4606494,109230.0,109220.0,0.44467]
[1756757592673,0.4606494,109230.0,109220.0,0.44367]
[1756757593072,0.44089566,109230.0,109220.0,0.49312911]
[1756757594869,0.63089566,109230.0,109220.0,0.49312911]
[1756757595270,0.3262,109230.0,109220.0,0.49312911]
[1756757595473,0.63089566,109230.0,109220.0,0.49312911]
[1756757596866,0.63089566,109230.0,109220.0,0.79782477]
[1756757597262,1.16036,109230.0,109220.0,0.79782477]
[1756757597672,1.16136,109230.0,109220.0,0.79782477]
[1756757598668,1.71605566,109230.0,109220.0,0.08287]
[1756757598874,1.71605566,109230.0,109210.0,0.71495477]
[1756757598875,2.4012586,109230.0,109210.0,0.08479911]
[1756757599166,0.61359132,109220.0,109210.0,0.08287]
[1756757599373,1.3440927,109220.0,109210.0,0.04753]
[1756757600269,1.32439132,109220.0,109210.0,0.04853]
[1756757600476,1.32439132,109220.0,109210.0,0.08387]
[1756757601474,2.15951132,109220.0,109210.0,0.08387]
[1756757601976,2.15951132,109220.0,109210.0,0.08287]
[1756757602169,2.15951132,109220.0,109210.0,0.08387]
[1756757604778,0.715,109220.0,109210.0,0.08387]
[1756757604973,2.15955132,109220.0,109210.0,0.08387]
[1756757606779,1.32439132,109220.0,109210.0,0.08387]
[1756757607079,1.49401566,109220.0,109210.0,0.74936566]
[1756757607276,0.65889566,109220.0,109210.0,0.74936566]
[1756757607779,1.49401566,109220.0,109210.0,0.74936566]
[1756757612476,1.49401566,109220.0,109210.0,0.44467]
[1756757612684,1.49401566,109220.0,109210.0,0.74936566]
[1756757614194,1.5137179,109220.0,109210.0,0.74936566]
[1756757618297,1.5137179,109220.0,109210.0,0.44467]
[1756757618500,1.20902224,109220.0,109210.0,0.74936566]
[1756757618692,1.81841356,109220.0,109210.0,0.74936566]
[1756757620700,1.81841356,109220.0,109210.0,0.44467]
[1756757620998,1.81841356,109220.0,109210.0,0.74936566]
[1756757621203,1.81841356,109220.0,109210.0,0.44467]
[1756757621397,1.81841356,109220.0,109210.0,0.74936566]
[1756757627305,1.81841356,109220.0,109210.0,0.79882477]
[1756757632111,1.81841356,109220.0,109210.0,0.49412911]
[1756757633012,1.81841356,109220.0,109210.0,0.44467]
[1756757634514,1.81841356,109220.0,109210.0,0.3618]
[1756757634707,1.81841356,109220.0,109210.0,0.38531]
[1756757635012,1.81841356,109220.0,109210.0,0.40965]
[1756757635915,1.81841356,109220.0,109210.0,0.44372]
[1756757636916,1.81841356,109220.0,109210.0,0.08292]
[1756757637109,1.81841356,109220.0,109210.0,0.44372]
[1756757638824,1.81809356,109220.0,109210.0,0.44372]
[1756757641920,1.81805356,109220.0,109210.0,0.44372]
[1756757642924,1.81805356,109220.0,109210.0,0.49317911]
[1756757656933,1.81781356,109220.0,109210.0,0.49317911]
[1756757657635,0.98329356,109220.0,109210.0,0.49317911]
[1756757657835,1.81781356,109220.0,109210.0,0.49317911]
[1756757664136,1.81781356,109220.0,109210.0,0.05045911]
[1756757664340,2.17861356,109220.0,109210.0,0.05045911]
[1756757667643,2.42861356,109220.0,109210.0,0.001]
[1756757668235,0.001,109200.0,109190.0,0.08475]
[1756757668436,1.75791132,109200.0,109190.0,0.02461]
[1756757668646,0.0042,109190.0,109180.0,0.44555]
[1756757668944,0.30889566,109190.0,109180.0,0.75024566]
[1756757669543,0.30689566,109190.0,109180.0,0.75024566]
[1756757669847,0.31089566,109190.0,109180.0,0.75024566]
[1756757670446,0.31389566,109190.0,109180.0,0.75024566]
[1756757670643,0.31393566,109190.0,109180.0,0.75024566]
[1756757672550,0.00924,109190.0,109180.0,0.75024566]
[1756757672747,0.38768,109190.0,109180.0,0.75024566]
[1756757673049,0.69237566,109190.0,109180.0,0.75024566]
[1756757673249,0.70169214,109190.0,109180.0,0.75024566]
[1756757681956,0.70169214,109190.0,109180.0,0.44555]
[1756757682153,0.70169214,109190.0,109180.0,0.75024566]
[1756757684855,0.39699648,109190.0,109180.0,0.75024566]
[1756757685155,0.70169214,109190.0,109180.0,0.75024566]
[1756757689256,0.70169214,109190.0,109180.0,0.7996102]
[1756757694171,0.70169214,109190.0,109180.0,0.49491454]
[1756757694769,0.70169214,109190.0,109180.0,0.7996102]
[1756757695772,0.39699648,109190.0,109180.0,0.7996102]
[1756757695973,0.70169214,109190.0,109180.0,0.7996102]
[1756757696578,0.70169214,109190.0,109180.0,0.49491454]
[1756757696875,0.70169214,109190.0,109180.0,0.7996102]
[1756757697079,0.72151377,109190.0,109180.0,0.7996102]
[1756757698075,0.72151377,109190.0,109180.0,0.75024566]
[1756757701781,0.41681811,109190.0,109180.0,0.75024566]
[1756757701974,1.17719377,109190.0,109180.0,0.75024566]
[1756757702579,1.17719377,109190.0,109180.0,0.44555]
[1756757702782,1.17719377,109190.0,109180.0,0.75024566]
[1756757702976,1.17719377,109190.0,109180.0,0.44555]
[1756757702977,1.17720919,109190.0,109180.0,0.44555]
[1756757703183,1.17720919,109190.0,109180.0,0.75024566]
[1756757703484,1.17720919,109190.0,109180.0,0.44555]
[1756757703683,1.17720919,109190.0,109180.0,0.75024566]
[1756757706885,1.17720919,109190.0,109180.0,0.38944566]
[1756757707184,1.17720919,109190.0,109180.0,0.75024566]
[1756757710685,1.17720919,109190.0,109180.0,0.44555]
[1756757711686,1.17720919,109190.0,109180.0,0.75024566]
[1756757713189,0.39308919,109190.0,109180.0,0.75024566]
[1756757713484,1.17704919,109190.0,109180.0,0.75024566]
[1756757713688,1.52704919,109190.0,109180.0,0.75024566]
[1756757714686,1.52604919,109190.0,109180.0,0.75024566]
[1756757714889,1.52504919,109190.0,109180.0,0.75024566]
[1756757716676,0.69108919,109190.0,109180.0,0.75024566]
[1756757716882,0.03639353,109190.0,109180.0,1.05494132]
[1756757717080,0.01435648,109190.0,109180.0,1.05494132]
[1756757717281,0.80112,109190.0,109180.0,1.30494132]
[1756757717585,0.00504,109190.0,109180.0,1.30494132]
[1756757717785,0.83896,109190.0,109180.0,1.37089975]
[1756757718178,0.83896,109190.0,109180.0,1.46249195]
[1756757719189,0.83796,109190.0,109180.0,1.46249195]
[1756757720188,0.83696,109190.0,109180.0,1.46249195]
[1756757723077,0.00304,109190.0,109180.0,1.39653352]
[1756757723686,0.83684,109190.0,109180.0,1.39653352]
[1756757724789,0.00304,109190.0,109180.0,1.39653352]
[1756757727496,0.00304,109190.0,109180.0,1.46249195]
[1756757729790,0.00304,109190.0,109180.0,1.37089975]
[1756757730493,0.00304,109190.0,109180.0,1.30494132]
[1756757732595,0.83672,109190.0,109180.0,1.30494132]
[1756757732794,1.14141566,109190.0,109180.0,0.75024566]
[1756757733003,1.14141566,109190.0,109180.0,0.44555]
[1756757733902,1.14141566,109190.0,109180.0,0.75024566]
[1756757734199,1.14141566,109190.0,109180.0,0.44555]
[1756757734393,1.14141566,109190.0,109180.0,0.49497598]
[1756757734588,1.41141566,109190.0,109180.0,0.49497598]
[1756757735893,1.77141566,109190.0,109180.0,0.49497598]
[1756757736091,1.79117536,109190.0,109180.0,0.45840598]
[1756757736407,1.77141566,109190.0,109180.0,0.45840598]
[1756757737002,1.79117539,109190.0,109180.0,0.45840598]
[1756757737198,1.48647973,109190.0,109180.0,0.45840598]
[1756757737497,1.79117539,109190.0,109180.0,0.45840598]
[1756757738900,1.48647973,109190.0,109180.0,0.45840598]
[1756757739107,1.79117539,109190.0,109180.0,0.45840598]
[1756757741003,1.48647973,109190.0,109180.0,0.75036566]
[1756757741303,1.79117539,109190.0,109180.0,0.75036566]
[1756757741899,1.79117539,109190.0,109180.0,0.44567]
[1756757742302,1.48647973,109190.0,109180.0,0.44567]
[1756757742503,1.79117539,109190.0,109180.0,0.44567]
[1756757743810,1.79123093,109190.0,109180.0,0.44567]
[1756757744010,1.48653527,109190.0,109180.0,0.44567]
[1756757744210,1.79123093,109190.0,109180.0,0.44567]
[1756757744418,1.48653527,109190.0,109180.0,0.44567]
[1756757744600,1.79123093,109190.0,109180.0,0.44567]
[1756757746210,1.77141566,109190.0,109180.0,0.49509598]
[1756757748414,1.77141566,109190.0,109180.0,0.79979164]
[1756757748814,1.77141566,109190.0,109180.0,0.49509598]
[1756757750718,1.77141566,109190.0,109180.0,0.43483598]
[1756757751432,1.77141566,109190.0,109180.0,0.45925598]
[1756757751616,1.77141566,109190.0,109180.0,0.49594598]
[1756757752118,0.93773566,109190.0,109180.0,0.49594598]
[1756757752321,1.77129566,109190.0,109180.0,0.49594598]
[1756757752717,1.4666,109190.0,109180.0,0.49594598]
[1756757752917,1.77129566,109190.0,109180.0,0.49594598]
[1756757753716,1.4666,109190.0,109180.0,0.49594598]
[1756757753916,1.77129566,109190.0,109180.0,0.49594598]
[1756757754223,1.79110726,109190.0,109180.0,0.49594598]
[1756757758722,0.60754726,109190.0,109180.0,0.80064164]
[1756757758916,1.44106726,109190.0,109180.0,0.80064164]
[1756757759223,1.47106726,109190.0,109180.0,0.80064164]
[1756757759625,1.47106726,109190.0,109180.0,0.49594598]
[1756757759924,1.1663716,109190.0,109180.0,0.80064164]
[1756757760127,1.47106726,109190.0,109180.0,0.80064164]
[1756757761215,1.47106726,109190.0,109180.0,0.49594598]
[1756757761421,1.47106726,109190.0,109180.0,0.80064164]
[1756757762526,1.47106726,109190.0,109180.0,0.49594598]
[1756757762828,1.47106726,109190.0,109180.0,0.80064164]
[1756757764526,1.1663716,109190.0,109180.0,0.80064164]
[1756757764728,1.47106726,109190.0,109180.0,0.80064164]
[1756757765831,1.47106726,109190.0,109180.0,0.49594598]
[1756757766031,1.47106726,109190.0,109180.0,0.80064164]
[1756757767333,1.47106726,109190.0,109180.0,0.49594598]
[1756757767528,1.47106726,109190.0,109180.0,0.09845598]
[1756757767728,1.47106726,109190.0,109180.0,0.49673598]
[1756757769332,2.38656292,109190.0,109170.0,0.04942598]
[1756757769634,1.1089875,109180.0,109160.0,0.04942598]
[1756757769822,1.13817566,109170.0,109160.0,0.13402598]
[1756757770026,1.15798726,109170.0,109160.0,0.13402598]
[1756757770428,1.15798726,109170.0,109160.0,0.09654598]
[1756757770732,1.15798726,109170.0,109160.0,0.09754598]
[1756757770935,1.17641687,109170.0,109160.0,0.09754598]
[1756757771133,0.87172121,109170.0,109160.0,0.09754598]
[1756757771331,1.17741687,109170.0,109160.0,0.13502598]
[1756757771532,1.24937069,109170.0,109160.0,0.09754598]
[1756757772132,1.22955909,109170.0,109160.0,0.09754598]
[1756757772333,1.22955909,109170.0,109160.0,0.09654598]
[1756757772534,1.23055909,109170.0,109160.0,0.09654598]
[1756757773034,1.2503921,109170.0,109160.0,0.04712]
[1756757773537,1.2503921,109170.0,109160.0,0.02398]
[1756757773930,1.2503921,109170.0,109160.0,0.04712]
[1756757774634,1.6103921,109170.0,109150.0,0.81438164]
[1756757774824,0.30469566,109160.0,109150.0,0.81438164]
[1756757776138,0.30469566,109160.0,109150.0,0.81538164]
[1756757788044,0.09038343,109170.0,109160.0,0.03748]
[1756757788250,1.57859909,109170.0,109160.0,0.0846]
[1756757789249,1.57959909,109170.0,109160.0,0.0846]
[1756757789856,1.58059909,109170.0,109160.0,0.0846]
[1756757792155,1.58059909,109170.0,109160.0,0.13402598]
[1756757793652,1.88529475,109170.0,109160.0,0.04942598]
[1756757793853,2.51592096,109170.0,109150.0,0.50968598]
[1756757794058,0.60939132,109160.0,109150.0,0.50968598]
[1756757794950,0.60939132,109160.0,109150.0,0.51426598]
[1756757795450,0.60939132,109160.0,109150.0,0.51526598]
[1756757796358,1.37002296,109160.0,109150.0,0.02956]
[1756757796555,1.92471862,109160.0,109150.0,0.00558]
[1756757796755,1.62002296,109160.0,109150.0,0.00558]
[1756757797161,1.73635128,109160.0,109150.0,0.00558]
[1756757797460,1.12695996,109160.0,109150.0,0.00558]
[1756757797662,1.73635128,109160.0,109150.0,0.00558]
[1756757798356,2.04104694,109160.0,109150.0,0.00558]
[1756757798757,1.73635128,109160.0,109150.0,0.00558]
[1756757800764,1.73635128,109160.0,109150.0,0.02845]
[1756757800955,2.57463128,109160.0,109150.0,0.02845]
[1756757802656,2.57463128,109160.0,109150.0,0.00558]
[1756757802961,2.57463128,109160.0,109150.0,0.05279]
[1756757803158,2.57463128,109160.0,109150.0,0.02845]
[1756757803363,2.57463128,109160.0,109150.0,0.00558]
[1756757803662,2.57463128,109160.0,109150.0,0.02845]
[1756757805365,2.57463128,109160.0,109150.0,0.00558]
[1756757805667,2.57463128,109160.0,109150.0,0.001]
[1756757805869,2.57463128,109160.0,109150.0,0.02387]
[1756757807168,2.57463128,109160.0,109150.0,0.001]
[1756757807368,2.57463128,109160.0,109150.0,0.04821]
[1756757808367,2.57463128,109160.0,109150.0,0.001]
[1756757808768,2.57463128,109160.0,109150.0,0.02387]
[1756757809770,2.87932694,109160.0,109150.0,0.02387]
[1756757810764,2.87932694,109160.0,109150.0,0.001]
[1756757813066,2.87932694,109160.0,109150.0,0.02387]
[1756757814268,2.87932694,109160.0,109130.0,0.04721]
[1756757814469,0.08227338,109130.0,109120.0,0.04721]
[1756757814669,2.24941634,109130.0,109120.0,0.0758481]
[1756757815574,2.24741634,109130.0,109120.0,0.0455481]
[1756757815776,2.24741634,109130.0,109120.0,0.005]
[1756757815969,1.94316776,109130.0,109120.0,0.01918119]
[1756757816167,1.94316776,109130.0,109120.0,0.01518119]
[1756757816373,1.94316776,109130.0,109120.0,0.001]
[1756757816975,1.94292776,109130.0,109120.0,0.04821]
[1756757817172,1.92510776,109130.0,109100.0,0.3608]
[1756757817377,0.4284,109120.0,109110.0,0.08251]
[1756757817579,0.42743164,109120.0,109110.0,0.08251]
[1756757817779,0.78823164,109120.0,109110.0,0.08251]
[1756757818075,0.16743164,109120.0,109110.0,0.69331]
[1756757818278,0.87629,109120.0,109110.0,0.69331]
[1756757818479,1.25629,109120.0,109110.0,0.69331]
[1756757818777,1.27972,109120.0,109110.0,0.69331]
[1756757818968,1.27972,109120.0,109110.0,0.69431]
[1756757819170,1.58486274,109120.0,109110.0,0.44431]
[1756757819477,1.60634274,109120.0,109110.0,0.44431]
[1756757819979,1.61570077,109120.0,109110.0,0.44431]
[1756757821369,1.31055803,109120.0,109110.0,0.44431]
[1756757821574,0.76210077,109120.0,109110.0,0.44431]
[1756757821774,1.54602077,109120.0,109110.0,0.44431]
[1756757822279,1.24602077,109120.0,109110.0,0.44431]
[1756757822480,1.54602077,109120.0,109110.0,0.44431]
[1756757823880,1.54602077,109120.0,109110.0,0.04821]
[1756757824079,1.54602077,109120.0,109110.0,0.08351]
[1756757824380,1.23602077,109120.0,109110.0,0.08351]
[1756757825878,0.69210077,109120.0,109110.0,0.001]
[1756757826076,1.54686077,109120.0,109110.0,0.001]
[1756757826279,1.90766077,109120.0,109110.0,0.001]
[1756757828784,2.21280351,109120.0,109110.0,0.001]
[1756757828979,2.2323521,109120.0,109110.0,0.001]
[1756757829477,2.4823521,109120.0,109110.0,0.001]
[1756757830883,2.17720936,109120.0,109110.0,0.001]
[1756757834480,2.15572936,109120.0,109100.0,0.03652]
[1756757834686,0.73609274,109110.0,109100.0,0.04852]
[1756757834883,1.06451201,109110.0,109100.0,0.08504]
[1756757835084,1.92043201,109110.0,109100.0,0.04852]
[1756757835285,1.06451201,109110.0,109100.0,0.08504]
[1756757835586,1.92059201,109110.0,109100.0,0.08504]
[1756757836086,0.75936927,109110.0,109100.0,0.08604]
[1756757836287,1.55975201,109110.0,109100.0,0.08604]
[1756757837487,1.55975201,109110.0,109100.0,0.08504]
[1756757837693,1.56075201,109110.0,109100.0,0.08504]
[1756757838487,0.70471201,109110.0,109100.0,0.08504]
[1756757838689,1.56087201,109110.0,109100.0,0.08504]
[1756757838986,1.63461043,109110.0,109100.0,0.08504]
[1756757841097,1.65417666,109110.0,109100.0,0.08504]
[1756757843390,1.34839392,109110.0,109100.0,0.08504]
[1756757843589,1.65353666,109110.0,109100.0,0.08504]
[1756757843790,1.34839392,109110.0,109100.0,0.08504]
[1756757844088,0.49287392,109110.0,109100.0,0.71071]
[1756757844496,1.34883392,109110.0,109100.0,0.71071]
[1756757845693,1.34959392,109110.0,109100.0,0.71071]
[1756757845894,1.34959392,109110.0,109100.0,1.01585274]
[1756757846594,1.34959392,109110.0,109100.0,0.71071]
[1756757847100,0.44707392,109110.0,109100.0,1.01585274]
[1756757847286,1.28466769,109110.0,109100.0,1.06527872]
[1756757847693,1.28466769,109110.0,109100.0,1.42607872]
[1756757848298,0.42750769,109110.0,109100.0,1.42607872]
[1756757848499,1.07083769,109110.0,109100.0,1.42607872]
[1756757848799,0.21315769,109110.0,109100.0,1.42607872]
[1756757849005,1.07083769,109110.0,109100.0,1.42607872]
[1756757851394,1.09231769,109110.0,109100.0,1.42607872]
[1756757852100,0.23463769,109110.0,109100.0,1.42607872]
[1756757852303,1.07175769,109110.0,109100.0,1.42607872]
[1756757853102,1.07175769,109110.0,109100.0,1.42609229]
[1756757854193,1.07163769,109110.0,109100.0,1.42609229]
[1756757854393,1.09311769,109110.0,109100.0,1.42609229]
[1756757855204,1.09311769,109110.0,109100.0,1.12094955]
[1756757855397,1.07163769,109110.0,109100.0,1.42609229]
[1756757855798,0.21315769,109110.0,109100.0,1.42609229]
[1756757856004,1.07155769,109110.0,109100.0,1.42609229]
[1756757856706,0.09315769,109110.0,109100.0,1.42609229]
[1756757856903,0.09315769,109110.0,109100.0,1.46831314]
[1756757857100,0.82235769,109110.0,109100.0,1.53427157]
[1756757857503,0.09315769,109110.0,109100.0,1.87427157]
[1756757858208,0.09315769,109110.0,109100.0,1.88369096]
[1756757858609,0.09315769,109110.0,109100.0,1.87427157]
[1756757861508,0.09315769,109110.0,109100.0,1.88339862]
[1756757861904,0.09315769,109110.0,109100.0,1.55427157]
[1756757862108,0.09315769,109110.0,109100.0,1.84427157]
[1756757863913,0.09315769,109110.0,109100.0,1.53427157]
[1756757864805,0.09315769,109110.0,109100.0,1.22912883]
[1756757865211,0.09315769,109110.0,109100.0,1.53427157]
[1756757866212,0.09315769,109110.0,109100.0,1.22912883]
[1756757866513,0.09315769,109110.0,109100.0,1.53427157]
[1756757869410,0.09315769,109110.0,109100.0,1.22912883]
[1756757869615,0.09315769,109110.0,109100.0,1.53427157]
[1756757870315,0.09315769,109110.0,109100.0,1.22912883]
[1756757870613,0.09315769,109110.0,109100.0,1.53427157]
[1756757872815,0.09315769,109110.0,109100.0,1.53885157]
[1756757873319,0.09315769,109110.0,109100.0,1.47289314]
[1756757873916,0.09315769,109110.0,109100.0,1.81289314]
[1756757874409,0.09315769,109110.0,109100.0,1.85289314]
[1756757875611,0.09315769,109110.0,109100.0,1.1677504]
[1756757875818,0.09315769,109110.0,109100.0,1.49289314]
[1756757876710,0.09315769,109110.0,109100.0,1.57522686]
[1756757879219,0.09315769,109110.0,109100.0,1.32522686]
[1756757882114,0.09315769,109110.0,109100.0,1.66522686]
[1756757882314,0.09315769,109110.0,109100.0,1.32522686]
[1756757882517,0.09315769,109110.0,109100.0,1.24289314]
[1756757883214,0.09315769,109110.0,109100.0,1.771471]
[1756757883520,0.11788769,109110.0,109100.0,2.07633374]
[1756757883819,0.09315769,109110.0,109100.0,2.07633374]
[1756757885517,0.09315769,109110.0,109100.0,1.22289374]
[1756757886013,0.11463769,109110.0,109100.0,1.22289374]
[1756757887223,0.11463769,109110.0,109100.0,1.30522746]
[1756757888023,0.11463769,109110.0,109100.0,1.22289374]
[1756757888423,0.11463769,109110.0,109100.0,1.30522746]
[1756757888625,0.09315769,109110.0,109100.0,1.30522746]
[1756757896224,0.09315769,109110.0,109100.0,1.00008472]
[1756757896425,0.09315769,109110.0,109100.0,1.30522746]
[1756757900540,0.71605043,109110.0,109100.0,0.89212293]
[1756757901441,0.71605043,109110.0,109100.0,0.82609]
[1756757905038,0.71605043,109110.0,109100.0,0.46529]
[1756757905345,0.46605043,109110.0,109100.0,0.45042]
[1756757906935,0.46605043,109110.0,109100.0,0.4998755]
[1756757910049,0.16090769,109110.0,109100.0,0.4998755]
[1756757910347,0.46605043,109110.0,109100.0,0.4998755]
[1756757910750,0.46605043,109110.0,109100.0,0.5141055]
[1756757916149,0.46602346,109110.0,109100.0,0.5141055]
[1756757918752,0.46602346,109110.0,109100.0,0.81922127]
[1756757919451,0.71602346,109110.0,109100.0,0.4148355]
[1756757919754,0.71602346,109110.0,109100.0,0.4981355]
[1756757930252,0.71602346,109110.0,109100.0,0.44868]
[1756757936063,1.09602346,109110.0,109100.0,0.44868]
[1756757936864,0.84602346,109110.0,109100.0,0.44868]
[1756757937059,1.15113923,109110.0,109100.0,0.05201]
[1756757937457,1.15113923,109110.0,109100.0,0.08788]
[1756757938462,0.84602346,109110.0,109100.0,0.08788]
[1756757938662,0.86566036,109110.0,109100.0,0.08788]
[1756757941264,0.56054459,109110.0,109100.0,0.08788]
[1756757941459,0.86566036,109110.0,109100.0,0.08788]
[1756757941660,1.17077613,109110.0,109100.0,0.10152705]
[1756757942868,0.86566036,109110.0,109100.0,0.13739705]
[1756757943464,1.22646036,109110.0,109100.0,0.13739705]
[1756757943871,1.53157613,109110.0,109100.0,0.13739705]
[1756757944671,1.22646036,109110.0,109100.0,0.13739705]
[1756757945064,1.53157613,109110.0,109100.0,0.13867705]
[1756757945569,1.22646036,109110.0,109100.0,0.13867705]
[1756757948172,1.53157613,109110.0,109100.0,0.13867705]
[1756757949874,1.22646036,109110.0,109100.0,0.13867705]
[1756757951874,1.53157613,109110.0,109100.0,0.13867705]
[1756757955175,1.53157613,109110.0,109100.0,0.08916]
[1756757955773,1.51315686,109110.0,109100.0,0.08916]
[1756757956674,0.90292532,109110.0,109100.0,0.08916]
[1756757956969,1.68976109,109110.0,109100.0,0.13867705]
[1756757958672,1.48976109,109110.0,109100.0,0.13867705]
[1756757962079,0.64724109,109110.0,109100.0,0.13867705]
[1756757962278,1.48968109,109110.0,109100.0,0.13867705]
[1756757964082,1.67968109,109110.0,109100.0,0.13867705]
[1756757968587,0.83724109,109110.0,109100.0,0.13867705]
[1756757968788,1.67876109,109110.0,109100.0,0.13867705]
[1756757973395,0.53212532,109110.0,109100.0,0.13867705]
[1756757973601,1.09188842,109110.0,109100.0,1.32511154]
[1756757973802,1.33188842,109110.0,109100.0,1.32511154]
[1756757974099,1.35336842,109110.0,109100.0,0.71488]
[1756757974302,1.06336842,109110.0,109100.0,1.32511154]
[1756757978201,0.98336842,109110.0,109100.0,1.32511154]
[1756757978690,0.09789842,109110.0,109100.0,1.32511154]
[1756757978891,0.91537842,109110.0,109100.0,1.80280537]
[1756757982198,0.91533842,109110.0,109100.0,1.80280537]
[1756757982605,0.07473842,109110.0,109100.0,1.80280537]
[1756757982798,0.91533842,109110.0,109100.0,1.73677244]
[1756757983000,0.91533842,109110.0,109100.0,1.80269808]
[1756757983605,0.07473842,109110.0,109100.0,1.80269808]
[1756757984405,0.07373842,109110.0,109100.0,1.80369808]
[1756757984607,0.85923065,109120.0,109100.0,1.80369808]
[1756757984807,0.92884065,109120.0,109110.0,0.7976204]
[1756757985507,0.90736065,109120.0,109110.0,0.8892725]
[1756757985809,0.88460065,109120.0,109110.0,0.9092725]
[1756757986007,0.002,109120.0,109110.0,1.19438827]
[1756757986200,0.002,109120.0,109110.0,1.77496364]
[1756757986402,0.002,109120.0,109110.0,1.84546928]
[1756757986805,0.004,109120.0,109110.0,1.84546928]
[1756757987608,0.003,109120.0,109110.0,1.84546928]
[1756757988309,0.001,109120.0,109110.0,1.84546928]
[1756757990013,0.21265,109130.0,109120.0,0.1380903]
[1756757990214,0.02337,109130.0,109120.0,1.5543179]
[1756757990513,0.92838896,109140.0,109130.0,0.08228]
[1756757990813,1.28772184,109140.0,109130.0,0.79754893]
[1756757991114,1.28772184,109140.0,109130.0,1.15754893]
[1756757992213,1.28972184,109140.0,109130.0,1.15754893]
[1756757992514,1.29172184,109140.0,109130.0,1.15754893]
[1756757993813,1.29172184,109140.0,109130.0,1.24918423]
[1756757995110,0.94172184,109140.0,109130.0,1.24918423]
[1756757995507,0.94172184,109140.0,109130.0,0.49243316]
[1756757995709,0.94172184,109140.0,109130.0,0.79754893]
[1756757996008,1.24683761,109140.0,109130.0,0.79754893]
[1756757997409,0.94172184,109140.0,109130.0,0.79754893]
[1756757999417,0.94160184,109140.0,109130.0,0.79754893]
[1756758003025,0.10120184,109140.0,109130.0,0.49243316]
[1756758003220,0.94156184,109140.0,109130.0,0.74819577]
[1756758006432,1.04156184,109140.0,109130.0,0.79754893]
[1756758007632,1.04156184,109140.0,109130.0,0.80212893]
[1756758009325,0.94156184,109140.0,109130.0,0.80212893]
[1756758009521,0.94156184,109140.0,109130.0,0.49701316]
[1756758009725,0.94156184,109140.0,109130.0,0.80212893]
[1756758013142,0.94156184,109140.0,109130.0,0.75277577]
[1756758015346,0.94156184,109140.0,109130.0,0.44766]
[1756758015643,0.94156184,109140.0,109130.0,0.75277577]
[1756758016446,0.94156184,109140.0,109130.0,0.81870141]
[1756758017048,0.94156184,109140.0,109130.0,0.75277577]
[1756758020339,0.94156184,109140.0,109130.0,0.81870141]
[1756758020952,0.99156184,109140.0,109130.0,0.81870141]
[1756758021952,0.99156184,109140.0,109130.0,0.75277577]
[1756758022752,0.07225896,109140.0,109130.0,1.42789154]
[1756758023046,0.02225896,109140.0,109130.0,2.67569248]
[1756758023247,0.02225896,109140.0,109130.0,2.69210056]
[1756758023550,0.02225896,109140.0,109130.0,2.60976684]
[1756758024050,0.02225896,109140.0,109130.0,2.67572202]
[1756758024454,0.02025896,109140.0,109130.0,2.60976684]
[1756758025149,0.001,109150.0,109140.0,0.1739069]
[1756758025451,0.001,109150.0,109140.0,1.91657586]
[1756758026049,0.001,109150.0,109140.0,1.85064234]
[1756758026249,0.001,109150.0,109140.0,1.91654387]
[1756758026449,0.001,109150.0,109140.0,1.53654387]
[1756758026649,0.001,109150.0,109140.0,1.87654387]
[1756758026850,0.005,109150.0,109140.0,1.5760081]
[1756758027053,0.005,109150.0,109140.0,0.62577656]
[1756758027248,0.005,109150.0,109140.0,0.51356153]
[1756758027249,0.07304,109150.0,109140.0,0.51356153]
[1756758027449,0.9132,109150.0,109140.0,0.47767153]
[1756758027749,1.21831577,109150.0,109140.0,0.7663034]
[1756758027954,1.21831577,109150.0,109140.0,0.71688577]
[1756758028150,1.21831577,109150.0,109140.0,0.75277577]
[1756758028654,0.9132,109150.0,109140.0,0.75277577]
[1756758029052,0.9132,109150.0,109140.0,1.05789154]
[1756758029352,0.9132,109150.0,109140.0,0.75277577]
[1756758029954,0.9132,109150.0,109140.0,0.75251299]
[1756758031253,0.9132,109150.0,109140.0,0.81841452]
[1756758031448,0.9132,109150.0,109140.0,0.75251299]
[1756758031856,0.9132,109150.0,109140.0,0.44766]
[1756758037662,0.9132,109150.0,109140.0,0.75251299]
[1756758039857,0.9132,109150.0,109140.0,0.44766]
[1756758040048,1.21805299,109150.0,109140.0,0.49707877]
[1756758044966,0.9132,109150.0,109140.0,0.49707877]
[1756758045566,0.91832,109150.0,109140.0,0.49707877]
[1756758046565,0.91832,109150.0,109140.0,0.80193176]
[1756758047465,0.91832,109150.0,109140.0,0.49707877]
[1756758050268,0.91832,109150.0,109140.0,0.44766]
[1756758051970,1.22318532,109150.0,109140.0,0.75252532]
[1756758052471,1.22318532,109150.0,109140.0,0.80197187]
[1756758054067,0.91832,109150.0,109140.0,0.80197187]
[1756758054268,1.22318532,109150.0,109140.0,0.80197187]
[1756758057272,1.22318532,109150.0,109140.0,0.80185187]
[1756758057571,1.22318532,109150.0,109140.0,0.49698655]
[1756758057867,1.53318532,109150.0,109140.0,0.80185187]
[1756758058271,1.53318532,109150.0,109140.0,0.49698655]
[1756758058473,1.53318532,109150.0,109140.0,0.80185187]
[1756758062873,1.22832,109150.0,109140.0,0.80185187]
[1756758063075,1.53318532,109150.0,109140.0,0.80185187]
[1756758063270,1.53318532,109150.0,109140.0,0.75240532]
[1756758065171,1.53318532,109150.0,109140.0,0.81830685]
[1756758066072,0.37790532,109150.0,109140.0,0.81830685]
[1756758066371,0.005,109150.0,109140.0,1.72213596]
[1756758066576,0.005,109150.0,109140.0,2.12966449]
[1756758066777,0.005,109150.0,109140.0,1.74317217]
[1756758067079,0.005,109150.0,109140.0,0.76344153]
[1756758067281,0.005,109150.0,109140.0,1.73317217]